[Event "Slovakian-ch Youth 2022"]
[Site "Lubovna"]
[Date "2022.05.23"]
[Round "3.21"]
[White "Ondrejcak Gregor"]
[Black "Koska, Jiri"]
[Result "0-1"]
[ECO "B13"]
[WhiteElo "1000"]
[BlackElo "1759"]
[Annotator "NA RC COMBH"]
[PlyCount "72"]
[EventDate "2022.05.22"]
[EventCountry "SVK"]
[SourceTitle "playchess.com"]
[Source "ChessBase"]
[SourceQuality "1"]
[TimeControl "40/5400+30:1800+30"]

1. e4 {[%emt 0:00:04]} c6 {[%emt 0:00:04]} 2. d4 {[%emt 0:00:13]} d5 {[%emt 0:00:06]} 3. exd5 {[%emt 0:00:09]} cxd5 {[%emt 0:00:09]} 4. c4 {[%emt 0:00:10]} Nf6 {[%emt 0:00:19]} 5. Nc3 {[%emt 0:00:12]} Nc6 {[%emt 0:00:24]} 6. Nf3 {[%emt 0:00:13]} Be6 {[%emt 0:02:35]} 7. Qb3 {[%emt 0:01:37]} dxc4 {[%emt 0:05:37]} 8. Bxc4 {[%emt 0:01:06]} Bxc4 {[%emt 0:11:37]} 9. Qxc4 {[%emt 0:00:20]} e6 {[%emt 0:00:09]} 10. a3 {[%emt 0:00:37]} Be7 {[%emt 0:00:28]} 11. Be3 {[%emt 0:01:13]} O-O {[%emt 0:00:27]} 12. O-O {[%emt 0:00:17]} Rc8 {[%emt 0:00:25]} 13. Qb5 {[%emt 0:02:35]} Na5 {[%emt 0:03:14]} 14. Rfd1 {[%emt 0:05:29]} a6 {[%emt 0:00:30]} 15. Qd3 {[%emt 0:01:52]} Nc4 {[%emt 0:03:37]} 16. Rab1 {[%emt 0:01:19]} Qc7 {[%emt 0:00:25]} 17. Qe2 {[%emt 0:04:24]} Rfd8 {[%emt 0:05:36]} 18. Nd2 {[%emt 0:03:01]} Nxd2 {[%emt 0:02:43]} 19. Rxd2 {[%emt 0:01:12]} Bxa3 {[%emt 0:08:41]} 20. bxa3 {[%emt 0:00:14]} Qxc3 {[%emt 0:00:10]} 21. Rxb7 {[%emt 0:04:25]} Qc1+ {[%emt 0:18:29]} 22. Rd1 {[%emt 0:07:13]} Qxa3 {[%emt 0:00:30]} 23. h3 {[%emt 0:00:30]} h6 {[%emt 0:00:30]} 24. Rdb1 {[%emt 0:02:01]} Rd6 {[%emt 0:09:04]} 25. Ra7 {[%emt 0:05:20]} Rd7 {[%emt 0:19:41]} 26. Rxa6 {[%emt 0:02:03]} Qe7 {[%emt 0:00:54]} 27. Kh1 {[%emt 0:01:54]} Nd5 {[%emt 0:00:14]} 28. Bd2 {[%emt 0:02:51]} Rdc7 {[%emt 0:01:24]} 29. Rb2 {[%emt 0:02:54]} Rc4 {[%emt 0:01:40]} 30. Be3 {[%emt 0:00:51]} Qc7 {[%emt 0:02:28]} 31. Rb1 {[%emt 0:07:29]} Nc3 {[%emt 0:00:29]} 32. Qg4 {[%emt 0:01:34]} Nxb1 {[%emt 0:01:22]} 33. Bxh6 {[%emt 0:00:53]} g6 {[%emt 0:01:14]} 34. Qe4 {[%emt 0:01:16]} Qb8 {[%emt 0:00:42]} 35. Rxe6 {[%emt 0:01:26]} Rc1+ {[%emt 0:00:17]} 36. Bxc1 {[%emt 0:00:21]} Rxc1+ {[%emt 0:00:30]} 0-1

[Event "Slovakian-ch Youth 2022"]
[Site "Lubovna"]
[Date "2022.05.23"]
[Round "3.22"]
[White "Orgon, Patrik"]
[Black "Klimek, Martin"]
[Result "1-0"]
[ECO "A03"]
[WhiteElo "1721"]
[BlackElo "1451"]
[Annotator "NA COMBH"]
[PlyCount "51"]
[EventDate "2022.05.22"]
[EventCountry "SVK"]
[SourceTitle "playchess.com"]
[Source "ChessBase"]
[SourceQuality "1"]
[TimeControl "40/5400+30:1800+30"]

1. f4 {[%emt 0:00:16]} d5 {[%emt 0:00:15]} 2. Nf3 {[%emt 0:00:09]} c5 {[%emt 0:01:00]} 3. e3 {[%emt 0:00:21]} Nf6 {[%emt 0:00:37]} 4. Bb5+ {[%emt 0:00:33]} Nc6 {[%emt 0:01:11]} 5. Bxc6+ {[%emt 0:00:44]} bxc6 {[%emt 0:00:24]} 6. O-O {[%emt 0:00:57]} Bg4 {[%emt 0:01:02]} 7. b3 {[%emt 0:02:12]} e6 {[%emt 0:00:39]} 8. Bb2 {[%emt 0:00:12]} Bd6 {[%emt 0:01:30]} 9. Qe1 {[%emt 0:05:41]} O-O {[%emt 0:06:36]} 10. Ne5 {[%emt 0:04:18]} Rc8 {[%emt 0:03:00]} 11. d3 {[%emt 0:03:17]} Bh5 {[%emt 0:03:32]} 12. Nd2 {[%emt 0:01:40]} Nd7 {[%emt 0:02:51]} 13. Nxd7 {[%emt 0:06:17]} Qxd7 {[%emt 0:00:24]} 14. e4 {[%emt 0:01:42]} e5 {[%emt 0:20:39]} 15. fxe5 {[%emt 0:06:52]} Bb8 {[%emt 0:00:20]} 16. Qg3 {[%emt 0:03:40]} Qg4 {[%emt 0:04:35]} 17. Qxg4 {[%emt 0:02:36]} Bxg4 {[%emt 0:00:12]} 18. h3 {[%emt 0:01:53]} Bh5 {[%emt 0:00:57]} 19. g4 {[%emt 0:04:19]} Bg6 {[%emt 0:00:50]} 20. Rae1 {[%emt 0:01:39]} d4 {[%emt 0:03:03]} 21. Nc4 {[%emt 0:03:56]} Rfe8 {[%emt 0:03:29]} 22. Ba3 {[%emt 0:02:58]} Bxe5 {[%emt 0:06:19]} 23. Bxc5 {[%emt 0:00:29]} f6 {[%emt 0:00:30]} 24. a4 {[%emt 0:06:13]} a6 {[%emt 0:01:47]} 25. Bd6 {[%emt 0:07:58]} c5 {[%emt 0:37:18]} 26. Bxe5 {[%emt 0:32:38]} 1-0

[Event "Slovakian-ch Youth 2022"]
[Site "Lubovna"]
[Date "2022.05.23"]
[Round "3.23"]
[White "Vojtas Marek"]
[Black "Jurky, Marian"]
[Result "0-1"]
[ECO "D02"]
[WhiteElo "1000"]
[BlackElo "1689"]
[Annotator "NA RC COMBH"]
[PlyCount "70"]
[EventDate "2022.05.22"]
[EventCountry "SVK"]
[SourceTitle "playchess.com"]
[Source "ChessBase"]
[SourceQuality "1"]
[TimeControl "40/5400+30:1800+30"]

1. d4 {[%emt 0:00:02]} d5 {[%emt 0:00:13]} 2. Bf4 {[%emt 0:00:12]} Nf6 {[%emt 0:00:34]} 3. e3 {[%emt 0:00:48]} e6 {[%emt 0:00:05]} 4. Bd3 {[%emt 0:00:24]} Bd6 {[%emt 0:00:37]} 5. Bg3 {[%emt 0:00:33]} O-O {[%emt 0:01:18]} 6. Nd2 {[%emt 0:01:00]} b6 {[%emt 0:01:28]} 7. Ngf3 {[%emt 0:08:36]} Ba6 {[%emt 0:00:36]} 8. Bxa6 {[%emt 0:00:48]} Nxa6 {[%emt 0:00:07]} 9. c3 {[%emt 0:00:21]} c5 {[%emt 0:01:33]} 10. Bxd6 {[%emt 0:01:38]} Qxd6 {[%emt 0:00:08]} 11. Ne5 {[%emt 0:00:16]} Nd7 {[%emt 0:01:31]} 12. f4 {[%emt 0:05:40]} Nab8 {[%emt 0:04:21]} 13. O-O {[%emt 0:01:17]} f6 {[%emt 0:01:30]} 14. Nxd7 {[%emt 0:01:16]} Nxd7 {[%emt 0:00:12]} 15. Qg4 {[%emt 0:01:28]} cxd4 {[%emt 0:00:40]} 16. cxd4 {[%emt 0:00:22]} Rac8 {[%emt 0:02:26]} 17. Rf3 {[%emt 0:01:22]} f5 {[%emt 0:02:44]} 18. Qg5 {[%emt 0:01:01]} Rf6 {[%emt 0:03:22]} 19. Qh4 {[%emt 0:03:35]} Rh6 {[%emt 0:00:38]} 20. Qf2 {[%emt 0:00:11]} Nf6 {[%emt 0:02:12]} 21. Nf1 {[%emt 0:02:57]} Ne4 {[%emt 0:02:08]} 22. Qe2 {[%emt 0:01:12]} Rc6 {[%emt 0:03:44]} 23. h3 {[%emt 0:02:51]} Rg6 {[%emt 0:01:25]} 24. Nh2 {[%emt 0:04:58]} Qc7 {[%emt 0:00:42]} 25. g4 {[%emt 0:01:02]} Rc2 {[%emt 0:00:37]} 26. Qb5 {[%emt 0:00:12]} Nd6 {[%emt 0:01:22]} 27. Qb3 {[%emt 0:01:49]} fxg4 {[%emt 0:00:08]} 28. hxg4 {[%emt 0:01:23]} Rh6 {[%emt 0:00:05]} 29. Nf1 {[%emt 0:01:10]} Rh4 {[%emt 0:00:59]} 30. g5 {[%emt 0:04:29]} Ne4 {[%emt 0:01:58]} 31. Qa4 {[%emt 0:00:29]} Qc8 {[%emt 0:00:22]} 32. f5 {[%emt 0:03:00]} Rg4+ {[%emt 0:01:29]} 33. Kh1 {[%emt 0:00:37]} exf5 {[%emt 0:03:22]} 34. Rxf5 {[%emt 0:01:12]} Qxf5 {[%emt 0:00:24]} 35. Qxc2 {[%emt 0:00:11]} Nf2+ {[%emt 0:00:09]} 0-1

[Event "Slovakian-ch Youth 2022"]
[Site "Lubovna"]
[Date "2022.05.23"]
[Round "3.24"]
[White "Papp, Gabor"]
[Black "Volanek, Maros"]
[Result "1/2-1/2"]
[ECO "D35"]
[WhiteElo "2564"]
[BlackElo "1458"]
[Annotator "TA"]
[PlyCount "52"]
[EventDate "2022.05.22"]
[EventCountry "SVK"]
[SourceTitle "playchess.com"]
[Source "ChessBase"]
[SourceQuality "1"]
[TimeControl "40/5400+30:1800+30"]

{[%evp 19,52,19,27,1,27,0,5,21,18,22,12,-37,-20,-12,34,-8,-8,-8,0,0,0,0,0,-34,-32,-25,-34,-25,-42,-40,-56,-37,0,0,0]} 1. d4 {[%emt 0:02:48]} d5 {[%emt 0:00:15]} 2. c4 {[%emt 0:00:15]} e6 {[%emt 0:00:24]} 3. Nc3 {[%emt 0:00:12]} Nf6 {[%emt 0:00:21]} 4. Nf3 {[%emt 0:00:10]} c6 {[%emt 0:00:29]} 5. Bg5 {[%emt 0:01:07]} Be7 {[%emt 0:00:38]} 6. e3 {[%emt 0:00:32]} Nbd7 {[%emt 0:01:03]} 7. cxd5 {[%emt 0:01:56]} exd5 {[%emt 0:00:07]} 8. Bd3 {[%emt 0:00:22]} O-O {[%emt 0:02:06]} 9. O-O {[%emt 0:00:11]} h6 {[%emt 0:01:35]} 10. Bh4 {[%emt 0:01:22]} Re8 {[%emt 0:03:57]} 11. Rb1 {[%emt 0:01:08] D35: Queen's Gambit Declined: Exchange Variation.} a6 {[%emt 0:01:26]} 12. b4 {[%emt 0:00:57]} b5 {[%emt 0:01:29]} 13. a4 {[%emt 0:22:03]} Nb6 {[%emt 0:07:20]} 14. Ne5 {[%emt 0:02:35] [#]} Qc7 $146 {[%emt 0:04:27]} ({Predecessor:} 14... Bb7 15. f4 Nc4 16. Bxc4 dxc4 17. Qf3 Nd5 18. Bxe7 Rxe7 19. Nxd5 Qxd5 20. Qxd5 cxd5 21. axb5 axb5 {1-0 (44) Suvorov,L (1255)-Shen,J (1383) Oberhof 2012}) 15. Qd2 {[%emt 0:06:57]} (15. f4 $11) 15... Ng4 {[%emt 0:13:26]} 16. Bxe7 {[%emt 0:02:08] [#] Hoping for Nxg4.} Rxe7 {[%emt 0:05:15]} (16... Nxe5 $11 {deserves consideration.} 17. Bc5 (17. dxe5 Qxe7 18. f4 Nc4 $15) 17... Nbc4 18. Bxc4 Nxc4) 17. a5 {[%emt 0:00:38]} ({Reject} 17. axb5 Nxe5 18. dxe5 axb5 $11) 17... Nc4 {[%emt 0:01:48]} 18. Bxc4 {[%emt 0:00:26]} bxc4 {[%emt 0:01:58]} 19. Nxg4 {[%emt 0:01:10]} Bxg4 {[%emt 0:01:07]} 20. f3 {[%emt 0:01:12]} Bf5 {[%emt 0:05:20]} 21. Rb2 {[%emt 0:00:01]} Rae8 {[%emt 0:01:16]} 22. Re1 {[%emt 0:00:45]} Re6 {[%emt 0:01:07] Strongly threatening ...Qe7.} 23. Na4 $1 {[%emt 0:02:00]} Qe7 {[%emt 0:00:36][%cal Re6e3]} 24. Kf2 {[%emt 0:00:33]} Qh4+ {[%emt 0:01:32]} 25. Kg1 {[%emt 0:00:09]} Qe7 {[%emt 0:00:15][%cal Re6e3]} 26. Kf2 {[%emt 0:03:01]} Qh4+ {[%emt 0:00:26] Weighted Error Value: White=0.10 (very precise) /Black=0.09 (flawless)} 1/2-1/2

[Event "Slovakian-ch Youth 2022"]
[Site "Lubovna"]
[Date "2022.05.23"]
[Round "3.25"]
[White "Baron, Patrik"]
[Black "Tokarcik, Patrik"]
[Result "1/2-1/2"]
[ECO "B07"]
[WhiteElo "1740"]
[BlackElo "1591"]
[Annotator "NA RC COMBH"]
[PlyCount "171"]
[EventDate "2022.05.22"]
[EventCountry "SVK"]
[SourceTitle "playchess.com"]
[Source "ChessBase"]
[SourceQuality "1"]
[TimeControl "40/5400+30:1800+30"]

1. e4 {[%emt 0:00:22]} d6 {[%emt 0:00:14]} 2. d4 {[%emt 0:00:08]} Nf6 {[%emt 0:00:05]} 3. Nc3 {[%emt 0:00:04]} g6 {[%emt 0:00:25]} 4. Be3 {[%emt 0:00:08]} Bg7 {[%emt 0:01:28]} 5. Qd2 {[%emt 0:00:06]} h6 {[%emt 0:02:09]} 6. h3 {[%emt 0:02:34]} c6 {[%emt 0:01:04]} 7. Nf3 {[%emt 0:06:05]} Qc7 {[%emt 0:09:37]} 8. Bd3 {[%emt 0:04:27]} Nbd7 {[%emt 0:01:09]} 9. O-O {[%emt 0:03:42]} c5 {[%emt 0:05:32]} 10. Rad1 {[%emt 0:09:31]} cxd4 {[%emt 0:03:59]} 11. Nxd4 {[%emt 0:00:18]} Nc5 {[%emt 0:01:46]} 12. Rfe1 {[%emt 0:10:07]} Nxd3 {[%emt 0:02:14]} 13. cxd3 {[%emt 0:00:12]} a6 {[%emt 0:06:55]} 14. Rc1 {[%emt 0:00:59]} Qd8 {[%emt 0:05:26]} 15. Rc2 {[%emt 0:03:44]} e5 {[%emt 0:05:13]} 16. Nde2 {[%emt 0:06:08]} Be6 {[%emt 0:02:43]} 17. Rec1 {[%emt 0:04:51]} Rc8 {[%emt 0:04:15]} 18. d4 {[%emt 0:07:59]} b5 {[%emt 0:06:35]} 19. d5 {[%emt 0:00:47]} Bd7 {[%emt 0:00:33]} 20. a3 {[%emt 0:03:07]} g5 {[%emt 0:06:19]} 21. f3 {[%emt 0:10:15]} Nh5 {[%emt 0:05:19]} 22. Na2 {[%emt 0:06:09]} Rxc2 {[%emt 0:04:39]} 23. Rxc2 {[%emt 0:01:56]} Nf4 {[%emt 0:00:52]} 24. Nb4 {[%emt 0:01:50]} Qa5 {[%emt 0:05:48]} 25. Nc6 {[%emt 0:01:17]} Qxd2 {[%emt 0:00:10]} 26. Rxd2 {[%emt 0:00:12]} O-O {[%emt 0:08:21]} 27. Nb4 {[%emt 0:02:18]} a5 {[%emt 0:01:58]} 28. Nc6 {[%emt 0:00:23]} Bxc6 {[%emt 0:04:46]} 29. dxc6 {[%emt 0:00:05]} Rc8 {[%emt 0:00:07]} 30. Nc3 {[%emt 0:06:24]} Rxc6 {[%emt 0:02:29]} 31. Nxb5 {[%emt 0:00:22]} Bf8 {[%emt 0:00:05]} 32. Ba7 {[%emt 0:03:31]} f6 {[%emt 0:02:35]} 33. a4 {[%emt 0:00:46]} Kf7 {[%emt 0:00:56]} 34. Bb8 {[%emt 0:00:40]} Ke6 {[%emt 0:00:17]} 35. Bc7 {[%emt 0:00:35]} Ra6 {[%emt 0:00:53]} 36. Kf2 {[%emt 0:03:16]} Kd7 {[%emt 0:00:30]} 37. Bb8 {[%emt 0:02:01]} Rc6 {[%emt 0:00:27]} 38. Kg3 {[%emt 0:01:15]} h5 {[%emt 0:00:46]} 39. b3 {[%emt 0:00:23]} Ne6 {[%emt 0:00:31]} 40. Ba7 {[%emt 0:00:27]} Be7 {[%emt 0:00:36]} 41. Na3 {[%emt 0:12:17]} Bd8 {[%emt 0:08:10]} 42. Nc4 {[%emt 0:00:35]} Bc7 {[%emt 0:00:47]} 43. Be3 {[%emt 0:03:33]} Ke7 {[%emt 0:01:30]} 44. Rd5 {[%emt 0:02:10]} Ra6 {[%emt 0:03:44]} 45. Rb5 {[%emt 0:02:39]} Kd7 {[%emt 0:02:37]} 46. Nb6+ {[%emt 0:03:10]} Kc6 {[%emt 0:07:42]} 47. Nd5 {[%emt 0:00:24]} Bd8 {[%emt 0:00:33]} 48. Kf2 {[%emt 0:03:10]} Nc7 {[%emt 0:03:17]} 49. Nxc7 {[%emt 0:00:46]} Bxc7 {[%emt 0:00:11]} 50. Ke2 {[%emt 0:01:14]} Ra8 {[%emt 0:03:09]} 51. Kd3 {[%emt 0:00:42]} Rg8 {[%emt 0:02:07]} 52. g4 {[%emt 0:01:00]} Rh8 {[%emt 0:00:58]} 53. Bd2 {[%emt 0:00:28]} hxg4 {[%emt 0:00:21]} 54. hxg4 {[%emt 0:00:07]} Ra8 {[%emt 0:00:29]} 55. Kc4 {[%emt 0:00:40]} Bb6 {[%emt 0:00:35]} 56. Bc3 {[%emt 0:00:54]} Bc7 {[%emt 0:00:51]} 57. b4 {[%emt 0:01:34]} axb4 {[%emt 0:00:36]} 58. Kxb4 {[%emt 0:00:16]} Bb6 {[%emt 0:00:36]} 59. Kb3 {[%emt 0:01:08]} Bc5 {[%emt 0:00:37]} 60. Bb4 {[%emt 0:01:17]} Bd4 {[%emt 0:01:09]} 61. Rd5 {[%emt 0:00:38]} Bc5 {[%emt 0:00:24]} 62. Bxc5 {[%emt 0:01:02]} dxc5 {[%emt 0:00:04]} 63. Rd1 {[%emt 0:01:29]} Rb8+ {[%emt 0:00:28]} 64. Kc2 {[%emt 0:00:38]} c4 {[%emt 0:00:54]} 65. Kc3 {[%emt 0:00:32]} Rb3+ {[%emt 0:00:42]} 66. Kxc4 {[%emt 0:00:07]} Rxf3 {[%emt 0:00:04]} 67. Ra1 {[%emt 0:00:59]} Rf4 {[%emt 0:00:23]} 68. Kd3 {[%emt 0:00:36]} Rxg4 {[%emt 0:00:15]} 69. a5 {[%emt 0:00:07]} Kb7 {[%emt 0:00:18]} 70. a6+ {[%emt 0:00:10]} Ka7 {[%emt 0:00:08]} 71. Ke3 {[%emt 0:00:37]} Rf4 {[%emt 0:00:51]} 72. Ra4 {[%emt 0:00:24]} g4 {[%emt 0:00:32]} 73. Ra2 {[%emt 0:00:41]} Rf3+ {[%emt 0:00:36]} 74. Ke2 {[%emt 0:00:14]} Rb3 {[%emt 0:00:35]} 75. Kf2 {[%emt 0:00:32]} Rb4 {[%emt 0:00:41]} 76. Re2 {[%emt 0:01:21]} Kxa6 {[%emt 0:01:01]} 77. Kg3 {[%emt 0:00:08]} Kb5 {[%emt 0:00:22]} 78. Kxg4 {[%emt 0:00:07]} Kc4 {[%emt 0:00:36]} 79. Kf5 {[%emt 0:00:19]} Kd3 {[%emt 0:00:10]} 80. Re1 {[%emt 0:00:18]} Kd2 {[%emt 0:00:50]} 81. Rh1 {[%emt 0:00:14]} Kd3 {[%emt 0:00:46]} 82. Rh3+ {[%emt 0:00:12]} Kd2 {[%emt 0:00:29]} 83. Kxf6 {[%emt 0:01:52]} Rxe4 {[%emt 0:00:10]} 84. Rh5 {[%emt 0:00:16]} Re2 {[%emt 0:00:22]} 85. Rxe5 {[%emt 0:00:08]} Rxe5 {[%emt 0:00:04]} 86. Kxe5 {[%emt 0:00:04]} 1/2-1/2

[Event "Slovakian-ch Youth 2022"]
[Site "Lubovna"]
[Date "2022.05.23"]
[Round "3.26"]
[White "Filo, David"]
[Black "Lakota, Jan"]
[Result "0-1"]
[ECO "D17"]
[WhiteElo "1653"]
[BlackElo "1488"]
[Annotator "NA RC COMBH"]
[PlyCount "71"]
[EventDate "2022.05.22"]
[EventCountry "SVK"]
[SourceTitle "playchess.com"]
[Source "ChessBase"]
[SourceQuality "1"]
[TimeControl "40/5400+30:1800+30"]

1. d4 {[%emt 0:00:09]} c6 {[%emt 0:00:10]} 2. c4 {[%emt 0:01:09]} d5 {[%emt 0:01:06]} 3. Nf3 {[%emt 0:00:27]} Nf6 {[%emt 0:00:30]} 4. Nc3 {[%emt 0:00:22]} dxc4 {[%emt 0:00:41]} 5. a4 {[%emt 0:00:43]} Bf5 {[%emt 0:00:44]} 6. Bf4 {[%emt 0:00:52]} e6 {[%emt 0:00:38]} 7. e3 {[%emt 0:01:03]} Bb4 {[%emt 0:01:29]} 8. Rc1 {[%emt 0:01:57]} Qa5 {[%emt 0:01:31]} 9. Nd2 {[%emt 0:06:26]} b5 {[%emt 0:10:50]} 10. Be2 {[%emt 0:06:25]} Bxc3 {[%emt 0:07:52]} 11. bxc3 {[%emt 0:00:08]} Nd5 {[%emt 0:00:22]} 12. Bg4 {[%emt 0:13:30]} Nxc3 {[%emt 0:06:43]} 13. Qf3 {[%emt 0:00:15]} Ne4 {[%emt 0:00:16]} 14. Rd1 {[%emt 0:02:04]} Nxd2 {[%emt 0:05:34]} 15. Rxd2 {[%emt 0:00:08]} c3 {[%emt 0:01:00]} 16. Bxf5 {[%emt 0:09:57]} cxd2+ {[%emt 0:04:27]} 17. Kd1 {[%emt 0:00:06]} exf5 {[%emt 0:00:44]} 18. Qg3 {[%emt 0:00:33]} Nd7 {[%emt 0:06:39]} 19. Qxg7 {[%emt 0:00:14]} O-O-O {[%emt 0:00:18]} 20. Qxf7 {[%emt 0:00:25]} Qxa4+ {[%emt 0:00:16]} 21. Kxd2 {[%emt 0:00:05]} Qb4+ {[%emt 0:01:00]} 22. Ke2 {[%emt 0:00:13]} Qc4+ {[%emt 0:00:05]} 23. Qxc4 {[%emt 0:00:04]} bxc4 {[%emt 0:00:07]} 24. Rc1 {[%emt 0:00:13]} Nb6 {[%emt 0:00:06]} 25. g3 {[%emt 0:00:42]} Rhe8 {[%emt 0:01:40]} 26. Kd2 {[%emt 0:00:40]} Rd5 {[%emt 0:00:15]} 27. Ra1 {[%emt 0:00:38]} Kb7 {[%emt 0:00:05]} 28. Kc3 {[%emt 0:00:09]} a5 {[%emt 0:00:17]} 29. f3 {[%emt 0:00:18]} c5 {[%emt 0:00:30]} 30. Rb1 {[%emt 0:00:23]} Kc6 {[%emt 0:00:00]} 31. g4 {[%emt 0:00:30]} cxd4+ {[%emt 0:00:00]} 32. exd4 {[%emt 0:00:30]} fxg4 {[%emt 0:00:09]} 33. fxg4 {[%emt 0:00:30]} Re4 {[%emt 0:00:30]} 34. Be5 {[%emt 0:00:30]} Rxg4 {[%emt 0:00:30]} 35. Rf1 {[%emt 0:00:30]} Nd7 {[%emt 0:00:30]} 36. Rf7 {[%emt 0:00:30]} 0-1

[Event "Slovakian-ch Youth 2022"]
[Site "Lubovna"]
[Date "2022.05.23"]
[Round "3.27"]
[White "Dolnik, Michal"]
[Black "Durovka, Marek"]
[Result "0-1"]
[ECO "B40"]
[WhiteElo "1548"]
[BlackElo "1827"]
[Annotator "NA COMBH"]
[PlyCount "56"]
[EventDate "2022.05.22"]
[EventCountry "SVK"]
[SourceTitle "playchess.com"]
[Source "ChessBase"]
[SourceQuality "1"]
[TimeControl "40/5400+30:1800+30"]

{[%evp 10,39,0,32767,21,29,32767,32767,20,28,115,126,123,32767,129,139,123,105,147,74,100,95,98,91,90,56,213,47,50,-55,-70,-44]} 1. e4 {[%emt 0:00:04]} c5 {[%emt 0:00:12]} 2. Nf3 {[%emt 0:00:24]} e6 {[%emt 0:01:08]} 3. b3 {[%emt 0:00:28]} Nf6 {[%emt 0:01:03]} 4. Nc3 {[%emt 0:03:20]} Nc6 {[%emt 0:04:10]} 5. Bb2 {[%emt 0:00:57]} d5 {[%emt 0:09:04]} 6. exd5 {[%emt 0:04:51]} Nxd5 {[%emt 0:03:45]} 7. Nxd5 {[%emt 0:00:45]} Qxd5 {[%emt 0:02:56]} 8. Qe2 {[%emt 0:10:46]} f6 {[%emt 0:12:25]} 9. O-O-O $1 {[%emt 0:00:16]} e5 {[%emt 0:01:40]} (9... Bd7 $11) 10. d4 $1 {[%emt 0:00:21]} cxd4 {[%emt 0:17:18]} 11. Nxd4 {[%emt 0:00:50]} Nxd4 {[%emt 0:05:34]} 12. Rxd4 {[%emt 0:00:13]} Qc6 {[%emt 0:02:37]} 13. Rc4 {[%emt 0:00:25]} ({Better is} 13. f4) 13... Qe6 {[%emt 0:05:21] [#]} 14. g3 {[%emt 0:00:34]} ({Don't take} 14. Rc7 $6 Kd8 15. Rc3 Bb4 $16) (14. f4 $1 $18 {[%cal Rf4e5] has better winning chances.}) 14... Bd6 {[%emt 0:06:16]} 15. Bg2 {[%emt 0:00:45]} O-O {[%emt 0:01:17]} 16. Rd1 {[%emt 0:00:15]} Qe7 {[%emt 0:01:02]} 17. Rh4 {[%emt 0:02:20]} Bf5 $18 {[%emt 0:01:30]} ({Black should play} 17... Rd8 $14) 18. Bd5+ $2 {[%emt 0:03:56]} (18. Qf3 $18 g5 19. Ra4 (19. Qxf5 gxh4 20. Be4 Rad8 $11)) 18... Kh8 {[%emt 0:04:54]} 19. g4 {[%emt 0:02:45]} (19. Qf3 $16 g6 20. Bxb7) 19... Bg6 {[%emt 0:04:17]} 20. Rh3 {[%emt 0:00:16]} e4 {[%emt 0:02:38]} 21. Kb1 {[%emt 0:03:56]} Rac8 {[%emt 0:01:05]} 22. Bxb7 {[%emt 0:02:43]} Qxb7 {[%emt 0:01:38]} 23. Rxd6 {[%emt 0:00:21]} e3 {[%emt 0:01:12]} 24. Qxe3 {[%emt 0:04:09]} Rxc2 {[%emt 0:01:48]} 25. Rd3 {[%emt 0:01:58]} Rfc8 {[%emt 0:04:04]} 26. Bc3 {[%emt 0:00:44]} R2xc3 {[%emt 0:00:23]} 27. Qd4 {[%emt 0:04:10]} Qh1+ {[%emt 0:00:24]} 28. Kb2 {[%emt 0:00:16]} Qc1# {[%emt 0:00:06]} 0-1

[Event "Slovakian-ch Youth 2022"]
[Site "Lubovna"]
[Date "2022.05.23"]
[Round "3.28"]
[White "Meszaros, Casey Ryan"]
[Black "Bilik, Matej"]
[Result "1-0"]
[ECO "B22"]
[WhiteElo "1757"]
[BlackElo "1553"]
[Annotator "NA RC COMBH"]
[PlyCount "97"]
[EventDate "2022.05.22"]
[EventCountry "SVK"]
[SourceTitle "playchess.com"]
[Source "ChessBase"]
[SourceQuality "1"]
[TimeControl "40/5400+30:1800+30"]

1. e4 {[%emt 0:00:39]} c5 {[%emt 0:00:17]} 2. c3 {[%emt 0:01:18]} d5 {[%emt 0:02:10]} 3. exd5 {[%emt 0:00:38]} Qxd5 {[%emt 0:00:13]} 4. d4 {[%emt 0:00:50]} e5 {[%emt 0:00:29]} 5. dxe5 {[%emt 0:02:30]} Qxd1+ {[%emt 0:00:31]} 6. Kxd1 {[%emt 0:00:09]} Nc6 {[%emt 0:00:12]} 7. Bb5 {[%emt 0:08:02]} Bd7 {[%emt 0:04:58]} 8. Nf3 {[%emt 0:03:00]} O-O-O {[%emt 0:02:51]} 9. Nbd2 {[%emt 0:07:08]} a6 {[%emt 0:09:12]} 10. Bc4 {[%emt 0:09:07]} Bg4 {[%emt 0:14:00]} 11. Be2 {[%emt 0:12:02]} Bxf3 {[%emt 0:11:02]} 12. Bxf3 {[%emt 0:00:47]} Nxe5 {[%emt 0:00:11]} 13. Kc2 {[%emt 0:04:06]} Nxf3 {[%emt 0:12:38]} 14. Nxf3 {[%emt 0:00:23]} f6 {[%emt 0:02:50]} 15. Be3 {[%emt 0:05:35]} Bd6 {[%emt 0:02:16]} 16. Rad1 {[%emt 0:02:19]} Ne7 {[%emt 0:02:27]} 17. g4 {[%emt 0:08:00]} Nc6 {[%emt 0:05:27]} 18. Rd5 {[%emt 0:04:26]} Be7 {[%emt 0:03:13]} 19. Rhd1 {[%emt 0:02:29]} b6 {[%emt 0:06:01]} 20. a3 {[%emt 0:09:04]} a5 {[%emt 0:10:43]} 21. Nh4 {[%emt 0:06:53]} g6 {[%emt 0:01:05]} 22. Ng2 {[%emt 0:00:24]} Rxd5 {[%emt 0:02:19]} 23. Rxd5 {[%emt 0:00:14]} Rd8 {[%emt 0:00:41]} 24. Nf4 {[%emt 0:01:09]} Ne5 {[%emt 0:01:40]} 25. h3 {[%emt 0:02:22]} Nc4 {[%emt 0:00:36]} 26. Rxd8+ {[%emt 0:04:30]} Bxd8 {[%emt 0:00:28]} 27. Kb3 {[%emt 0:02:00]} Nxe3 {[%emt 0:00:11]} 28. fxe3 {[%emt 0:00:02]} Kd7 {[%emt 0:00:36]} 29. Kc4 {[%emt 0:01:01]} Kc6 {[%emt 0:00:21]} 30. a4 {[%emt 0:00:14]} Bc7 {[%emt 0:03:39]} 31. Nd5 {[%emt 0:03:03]} Bd8 {[%emt 0:00:47]} 32. e4 {[%emt 0:00:33]} g5 {[%emt 0:00:45]} 33. Ne3 {[%emt 0:00:23]} Kd6 {[%emt 0:01:16]} 34. Kb5 {[%emt 0:01:13]} Ke5 {[%emt 0:00:54]} 35. Nd5 {[%emt 0:00:44]} Kxe4 {[%emt 0:00:09]} 36. Nxb6 {[%emt 0:00:18]} h5 {[%emt 0:00:40]} 37. gxh5 {[%emt 0:00:30]} f5 {[%emt 0:00:07]} 38. Nd7 {[%emt 0:00:25]} f4 {[%emt 0:00:25]} 39. h6 {[%emt 0:00:27]} f3 {[%emt 0:00:11]} 40. h7 {[%emt 0:00:06]} f2 {[%emt 0:00:10]} 41. h8=Q {[%emt 0:30:08]} f1=Q+ {[%emt 0:30:16]} 42. c4 {[%emt 0:00:05]} Bc7 {[%emt 0:00:00]} 43. Nxc5+ {[%emt 0:00:00]} Ke3 {[%emt 0:00:00]} 44. Qc3+ {[%emt 0:00:00]} Kf2 {[%emt 0:00:00]} 45. Ne4+ {[%emt 0:00:00]} Kg1 {[%emt 0:00:00]} 46. Qe3+ {[%emt 0:00:00]} Kg2 {[%emt 0:00:00]} 47. Qxg5+ {[%emt 0:00:00]} Kh2 {[%emt 0:00:00]} 48. Qd2+ {[%emt 0:00:00]} Kh1 {[%emt 0:00:00]} 49. Qd1 {[%emt 0:00:00]} 1-0